Cogmind - Beta 15 *** ADVENTURER MODE // 2025.07.02 @ 04:44:46 Player: Luna Result: Destroyed by NV-2LU(R) with Subdweller Laser Performance ------------- Evolutions (0) 0 Regions Visited (3) 600 Robots Destroyed (36) 180 Value Destroyed (408) 408 Prototype IDs (0) 0 Alien Tech Used (0) 0 Bonus (0) 0 TOTAL SCORE: 1188 Bonus ------- None Cogmind --------- Core Integrity 0/250 Matter 300/300 Energy 200/200 System Corruption 0% Temperature Cool (15) Movement Rolling (105) Ox1 Location -10/Subcaves Parts ------- > --- POWER (1) -------- Subdweller Power Source > --- PROPULSION (2) --- Wheel Compact Wheel > --- UTILITY (2) ------ Large Storage Unit Improved Terrain Scanner > --- WEAPON (2) ------- Medium Laser Medium Laser > --- INVENTORY (15) --- Light Ion Engine Wheel Compact Wheel Cargo Storage Unit Structural Scanner Structural Scanner Visual Processing Unit Targeting Computer Medium Laser Medium Laser Medium Laser Medium Laser Particle Gun Light Assault Rifle Peak State ------------ > --- POWER ------------ Ion Engine > --- PROPULSION ------- Wheel Compact Wheel > --- UTILITY ---------- Large Storage Unit Improved Terrain Scanner > --- WEAPON ----------- Medium Laser Medium Laser > --- INVENTORY -------- Light Ion Engine Wheel Compact Wheel Improved Heat Sink Cargo Storage Unit Structural Scanner Structural Scanner Visual Processing Unit Improved Terrain Scanner Medium Laser Medium Laser Particle Gun Light Assault Rifle [Rating: 11] Favorites ----------- Power Ion Engine Engine Ion Engine Propulsion Compact Wheel Treads Light Treads Wheel Compact Wheel Utility Improved Terrain Scanner Device Improved Terrain Scanner Storage Small Storage Unit Weapon Medium Laser Energy Gun Medium Laser Special Weapon Mining Laser Build | -11 -10 -10 -10 ------- Run | Yrd Mat Min Sub Slots Evolved . | . . . . Power . | . . . . Propulsion . | . . . . Utility . | . . . . Weapon . | . . . . Parts Attached 21 | 11 8 1 1 Power 3 | 1 1 . 1 Engine 3 | 1 1 . 1 Core . | . . . . Reactor . | . . . . Propulsion 7 | 4 2 1 . Treads 1 | 1 . . . Leg . | . . . . Wheel 6 | 3 2 1 . Hover . | . . . . Flight . | . . . . Utility 5 | 3 2 . . Device 3 | 2 1 . . Storage 2 | 1 1 . . Processor . | . . . . Hackware . | . . . . Protection . | . . . . Artifact . | . . . . Weapon 6 | 3 3 . . Energy Gun 4 | 2 2 . . Energy Cannon . | . . . . Ballistic Gun . | . . . . Ballistic Cannon . | . . . . Launcher . | . . . . Special Weapon 2 | 1 1 . . Impact Weapon . | . . . . Slashing Weapon . | . . . . Piercing Weapon . | . . . . Special Melee Weapon . | . . . . Unidentified Prototypes . | . . . . Parts Lost 4 | 1 2 . 1 Power 2 | . 1 . 1 Propulsion . | . . . . Utility 1 | 1 . . . Weapon 1 | . 1 . . Highest Loss Streak 2 | 1 2 . 1 To Critical Strikes . | . . . . Average Backups 8 | 5 11 14 14 Power 1 | 1 1 1 1 Propulsion 1 | 1 1 2 2 Utility 1 | . 4 5 5 Weapon 3 | 1 3 6 6 Tool/Special . | . . . . Unused Backups 17 | . 3 . 14 Power 2 | . 1 . 1 Propulsion 3 | . 1 . 2 Utility 6 | . 1 . 5 Weapon 6 | . . . 6 Tool/Special . | . . . . Average Slot Usage (%) 99 | . 99 100 99 Engine 13 | . 13 14 13 Wheel 28 | . 28 28 28 Device 14 | . 14 14 14 Storage 14 | . 14 14 14 Energy Gun 27 | . 27 28 28 Peak Build Rating 11 | 10 11 10 11 Average Rating 8 | 8 9 10 10 On Entrance 7 | . 10 10 10 Naked Turns . | . . . . Heaviest Build 30 | 15 30 30 30 Greatest Support 32 | 32 26 26 26 Greatest Overweight (x) 1 | . 1 1 1 Average Overweight (x) . | . . 1 . Largest Inventory Capacity 15 | 8 15 15 15 Average Capacity 10 | 7 14 15 15 Most Carried 15 | 8 15 15 15 Average Carried 8 | 5 12 15 15 Final Capacity 15 | 8 15 15 15 Final Carried 15 | 8 15 15 15 Class Distribution -------------------- 81% | Mutant 18% | Scavenger-Mutant Dominant Class ---------------- Mutant | -10/Materials Scavenger-Mutant | -10/Mines Scavenger-Mutant | -10/Subcaves Resources | -11 -10 -10 -10 ----------- Run | Yrd Mat Min Sub Matter Collected 435 | 330 85 10 10 Remotely . | . . . . Salvage Created 1104 | 312 564 165 63 Parts 80 | 25 34 15 6 Haulers Intercepted 1 | . 1 . . Recyclers Shooed 2 | . 2 . . Parts Field Recycled . | . . . . Retrieved Matter . | . . . . Parts Self-Destructed . | . . . . Prevented . | . . . . Kills | -11 -10 -10 -10 ------- Run | Yrd Mat Min Sub Combat Hostiles Destroyed 9 | 1 6 . 2 Guns 9 | 1 6 . 2 Classes Destroyed 10 | 4 5 . 1 Worker 11 | 4 5 2 . Builder 1 | . 1 . . Tunneler 8 | 6 . 2 . Hauler 1 | . 1 . . Recycler 4 | 1 2 1 . Watcher 2 | . 2 . . Swarmer 3 | . 3 . . Grunt 3 | . 3 . . Demolisher 1 | 1 . . . Subdweller 2 | . . . 2 Best Kill Streak 8 | 2 8 3 2 Combat Bots Only 3 | 1 3 . 2 Max Kills in Single Turn 1 | 1 1 1 1 Gunslinging . | . . . . Exploded . | . . . . Melee . | . . . . Uniques/NPCs Destroyed . | . . . . Combat | -11 -10 -10 -10 -------- Run | Yrd Mat Min Sub Hostile Shots Fired 67 | 12 35 . 20 Missed 16 | 1 8 . 7 Hits 51 | 11 27 . 13 Projectile 51 | 11 27 . 13 AOE 11 | 11 . . . Damage Taken 757 | 288 212 . 257 Core 254 | 78 60 . 116 Absorbed by Shields . | . . . . Ignored by Resistances 217 | 81 68 . 68 Core Remaining (%) 68 | 68 . . . Volleys Fired 93 | 30 45 8 10 Largest 2 | 2 2 2 2 Hottest 100 | 100 100 100 100 Shots Fired 177 | 56 85 16 20 Gun 168 | 52 80 16 20 Cannon . | . . . . Launcher . | . . . . Special 9 | 4 5 . . Kinetic . | . . . . Thermal 177 | 56 85 16 20 Explosive . | . . . . Electromagnetic . | . . . . Robot Hit Streak 19 | 13 19 7 17 Robot Miss Streak 5 | 2 5 1 . Penetration Max . | . . . . Secondary Targets 2 | . 2 . . Max Gunslinging Chain 1 | . 1 . . Shots Hit Robots 123 | 39 55 12 17 Core Hits 49 | 16 23 6 4 Critical Kills . | . . . . Critical Parts Destroyed . | . . . . Critical Strikes 6 | 3 1 . 2 Burn 6 | 3 1 . 2 Melee Attacks . | . . . . Impact . | . . . . Slashing . | . . . . Piercing . | . . . . Sneak Attacks . | . . . . Combat Hostiles . | . . . . Follow-up Attacks . | . . . . Damage Inflicted 1551 | 505 686 149 211 Guns 1551 | 505 686 149 211 Cannons . | . . . . Explosions . | . . . . Melee . | . . . . Ramming . | . . . . Kinetic . | . . . . Thermal 1551 | 505 686 149 211 Explosive . | . . . . Electromagnetic . | . . . . Impact . | . . . . Slashing . | . . . . Piercing . | . . . . Highest Corruption . | . . . . Average Corruption . | . . . . Corruption Purged . | . . . . Corruption Blocked . | . . . . Overload Shots . | . . . . Overflow Damage . | . . . . Projectiles . | . . . . Explosions . | . . . . Melee . | . . . . Knockbacks . | . . . . Impact . | . . . . Kinetic . | . . . . Secondary . | . . . . Self-Inflicted Damage . | . . . . Shots . | . . . . Rammed . | . . . . Targets Rammed . | . . . . Kicked . | . . . . Crushed . | . . . . Highest Temperature 422 | 254 422 78 2 Average Temperature 111 | 76 152 38 2 Received Heat Transfer 177 | . 102 . 75 Effects 3 | . 3 . . Shutdowns 1 | . 1 . . Energy Bleed 2 | . 2 . . Siege Activations . | . . . . Martial Activations . | . . . . Shielding Activations . | . . . . Robots Disrupted . | . . . . Combat Hostiles . | . . . . Robots Corrupted . | . . . . Combat Hostiles . | . . . . Parts Fried . | . . . . Impact Corruptions . | . . . . Robots Melted . | . . . . Combat Hostiles . | . . . . Parts Melted 6 | 1 5 . . Heat Transferred 5069 | 1739 2109 444 777 Parts Sabotaged . | . . . . Parts Stolen . | . . . . Parts Stripped . | . . . . Power Chain Reactions . | . . . . Alert | -11 -10 -10 -10 ------- Run | Yrd Mat Min Sub Maximum Alert Level . | . . . . Low Security (%) 100 | 100 100 100 . Level 1 . | . . . . Level 2 . | . . . . Level 3 . | . . . . Level 4 . | . . . . Level 5 . | . . . . High Security . | . . . . Max Security . | . . . . Peak Influence 85 | 20 85 10 . Initial 2 | . 2 1 . Average 5 | . 24 1 . Influence Increases 307 | 75 207 25 . Destroy 0b10 Robot/C 140 | 20 120 . . Destroy 0b10 Robot/NC 135 | 55 55 25 . Destroy Leader 26 | . 26 . . Successful Hack 6 | . 6 . . Influence Decreases 307 | 70 207 30 . Entered New Map 7 | . 3 4 . Time Decay 280 | 70 184 26 . Lost Part 20 | . 20 . . Squads Dispatched . | . . . . Investigation . | . . . . Extermination . | . . . . Reinforcement . | . . . . Assault . | . . . . Garrison . | . . . . Intercept . | . . . . Searches Triggered . | . . . . Construction Impeded . | . . . . Haulers Reinforced . | . . . . Active Scanning Responses . | . . . . Cargo Convoy Interrupts . | . . . . Stealth | -11 -10 -10 -10 --------- Run | Yrd Mat Min Sub Distress Signals 2 | . 2 . . Communications Jammed . | . . . . Distress Signals . | . . . . Times Spotted 16 | 2 10 . 4 Peak Tracking Total 5 | 2 5 . 2 Tactical Retreats . | . . . . Traps | -11 -10 -10 -10 ------- Run | Yrd Mat Min Sub Traps Triggered . | . . . . Indirectly . | . . . . Trap Hack Attempts . | . . . . Triggered . | . . . . Disarmed 4 | . 4 . . Reprogrammed . | . . . . Reused . | . . . . Traps Extracted . | . . . . Installed . | . . . . Triggered . | . . . . Machines | -11 -10 -10 -10 ---------- Run | Yrd Mat Min Sub Machines Disabled . | . . . . Max in Single Turn . | . . . . Machines Repaired . | . . . . Machines Dismantled . | . . . . Machines Sabotaged . | . . . . Overloaded Fab Kills . | . . . . Hacking | -11 -10 -10 -10 --------- Run | Yrd Mat Min Sub Machines Accessed 4 | . 4 . . Terminals 4 | . 4 . . Fabricators . | . . . . Repair Stations . | . . . . Recycling Units . | . . . . Scanalyzers . | . . . . Garrison Access . | . . . . Total Hacks 8 | . 8 . . Successful 3 | . 3 . . Failed 5 | . 5 . . Catastrophic . | . . . . Database Lockouts . | . . . . Manual . | . . . . Terminals 8 | . 8 . . Fabricators . | . . . . Repair Stations . | . . . . Recycling Units . | . . . . Scanalyzers . | . . . . Garrison Access . | . . . . Terminal Hacks 3 | . 3 . . Branch Access Points 1 | . 1 . . Locate Traps 1 | . 1 . . Disarm Traps 1 | . 1 . . Fabricator Hacks . | . . . . Repair Station Hacks . | . . . . Recycling Unit Hacks . | . . . . Scanalyzer . | . . . . Garrison Access Hacks . | . . . . Unauthorized Hacks . | . . . . Terminals . | . . . . Fabricators . | . . . . Repair Stations . | . . . . Recycling Units . | . . . . Scanalyzers . | . . . . Garrison Access . | . . . . Data Cores Recovered . | . . . . Used . | . . . . Hacking Detections 3 | . 3 . . Full Trace Events 1 | . 1 . . Feedback Events . | . . . . Feedback Blocked . | . . . . Robot Schematics Acquired . | . . . . Robots Built . | . . . . Authchips . | . . . . Time . | . . . . Total Robot Build Rating . | . . . . Part Schematics Acquired . | . . . . Parts Built . | . . . . Authchips . | . . . . Time . | . . . . Total Part Build Rating . | . . . . Parts Repaired . | . . . . Time . | . . . . Parts Recycled . | . . . . Recycled Matter . | . . . . Retrieved Matter . | . . . . Retrieved Components . | . . . . Parts Scanalyzed . | . . . . Part Schematics Acquired . | . . . . Parts Damaged . | . . . . Bothacking | -11 -10 -10 -10 ------------ Run | Yrd Mat Min Sub Used RIF Installer . | . . . . Robots Hacked . | . . . . Non-combat . | . . . . Combat . | . . . . Robot Hacks Applied . | . . . . Relay Couplers Released . | . . . . Fabnet Peak Effective % . | . . . . Robots Rewired . | . . . . Allies Hacked . | . . . . Hacks Repelled . | . . . . Allies | -11 -10 -10 -10 -------- Run | Yrd Mat Min Sub Total Allies . | . . . . Largest Group . | . . . . Highest-Rated Group . | . . . . Highest-Rated Ally . | . . . . Total Orders . | . . . . Ally Attacks . | . . . . Total Damage . | . . . . Kills . | . . . . Allies Corrupted . | . . . . Allies Melted . | . . . . Intel | -11 -10 -10 -10 ------- Run | Yrd Mat Min Sub Active Infowar (turns) 2599 | 1496 554 204 345 Terrain 2599 | 1496 554 204 345 Robot Analysis Total . | . . . . Derelict Logs Recovered 1 | . . . 1 Drone Launches . | . . . . Drone Recoveries . | . . . . Exploration | -11 -10 -10 -10 ------------- Run | Yrd Mat Min Sub Turns Passed 3036 | 1933 554 204 345 Spaces Moved 1887 | 1120 358 132 277 Core 3 | 3 . . . Treads . | . . . . Legs . | . . . . Wheels 1884 | 1117 358 132 277 Hover . | . . . . Flight . | . . . . Fastest Speed 50 | 50 90 105 90 Average Speed 101 | 99 103 105 104 Slowest Speed 105 | 100 105 105 105 Overloaded Moves . | . . . . Propulsion Burnouts . | . . . . Robots Hopped . | . . . . Potential Cave-ins 3 | 3 . . . Cave-ins Triggered . | . . . . Exploration Rate (%) 43 | 53 57 45 18 Regions Visited 3 Branch Regions 2 Pre-discovered Areas . | . . . . Known Exits Taken 1 | . 1 . . Unknown Exits Taken 2 | 1 . 1 . Scrap Searched 1 | . . 1 . Spaces Dug 4 | 4 . . . Terrain Destroyed 4 | 4 . . . Melee . | . . . . Projectile 4 | 4 . . . AOE . | . . . . Terrain Rammed . | . . . . Walls Destroyed . | . . . . Machines Disabled . | . . . . Actions | -11 -10 -10 -10 --------- Run | Yrd Mat Min Sub Total 2821 | 1870 459 181 311 Wait 773 | 689 21 40 23 Move 1884 | 1119 357 131 277 Hop . | . . . . Pick Up 34 | 17 17 . . Fast Attach 1 | . . . 1 Attach 10 | 8 2 . . Detach . | . . . . Swap 13 | 5 7 1 . Drop 13 | 2 10 1 . Fire 93 | 30 45 8 10 Melee . | . . . . Ram . | . . . . Kick . | . . . . Crush . | . . . . Escape Stasis . | . . . . Rewire . | . . . . Trap . | . . . . Miscellaneous . | . . . . Route ------- -11/Scrapyard -10/Materials (discovered 3 exits: [*Mat] / *Min x2) -10/Mines -10/Subcaves History --------- Turn | Location | Event 26 | -11/Scrapyard | Discovered new exit (range 16) 1755 | -11/Scrapyard | Assembled infested the area 1934 | -11/Scrapyard | Entered Materials 1962 | -10/Materials | Build established: Mutant 2039 | -10/Materials | Discovered new exit (range 7) 2104 | -10/Materials | Core integrity fell below 50% 2233 | -10/Materials | Discovered new exit (range 16) 2278 | -10/Materials | Discovered new exit (range 14) 2324 | -10/Materials | Identified exit to Mines 2488 | -10/Materials | Entered Mines 2674 | -10/Mines | Discovered new exit (range 7) 2692 | -10/Mines | Entered Subcaves 2759 | -10/Subcaves | Build established: Scavenger-Mutant 2962 | -10/Subcaves | Learned 4 Materials zone layouts 3036 | -10/Subcaves | Core integrity fell below 20% 3037 | -10/Subcaves | Destroyed by NV-2LU(R) with Subdweller Laser Last Messages --------------- T-07 Excavator is excavating. U-05 Engineer builds a Wall. T-07 Excavator is excavating. U-05 Engineer lays Concrete. T-07 Excavator is excavating. LOCATION=UNKNOWN AMBIENT_HEAT=-10 GOAL=ESCAPE Acquired derelict log, extracted data. Data stored: Materials zone layouts (x4). LL-93H(R) suffers critical hit (Burn). LL-93H(R) destroyed. Subatomizers dissect the Sub. Machine Gun. Ion Engine destroyed. KJ-QTN(R) suffers critical hit (Burn). KJ-QTN(R) overheating. KJ-QTN(R) destroyed. Acquired Sub. Power Source. Subatomizers dissect the Sub. Machine Gun. Acquired 10 matter. Map ----- +----------------------------------------------------+ | ?????????????????????????????????????????????????? | | ?????????????????????????????????????????????????? | | ?????????????????????????????????????????????????? | | ?????????????????????????????????????????????????? | | ?????????????????????????????????????????????????? | | ?????????????????????????????????????????????????? | | ??????????????????????????????????????????#??????? | | ?????????????????????????????????????????????????? | | ?????????????????????????????????????????????????? | | ?????????????????????????? ???????????????#??????# | | ????????????????????????? ??????????????????????? | | ????????????????????????? ??????????????????????? | | ????????????????????????? ??????????????????##### | | ????????????????????????? ??????????????????# | | ????????????????????????? ???? ?????????????# ### | | ????????????????????????? ???????????????#???# #?? | | ????????????????????????? ???????????????????# #?? | | ???????????????????????## ??? ??? ???????????# #?? | | ???????????????????????# ???????????????#???# ### | | ???????????????????????# ? ?????????????????# # | | ?????????????" """??#### ??????????????#????### | | ?????????????"" ""## #????#??????#???????#?### | | ??????????????? #???????????????????????? | | ??????????????????? R##????????#?#??#??#?????? | | ?????????????"? ????? # R;###?????????#??????????? | | ?????????????????????## @ ####????#???#?#?????#? | | ?????????????????????# ##???###????????#?? | | ???????????????# # #???# #######????? | | ???????????????## " #####!!#?### #????? | | ???????????#????##""## ???##&### ###### | | ?????????????????## #####&% ## | | ??????????????????# ## =[!## | | ??????????????????# # ## &%## | | ??????????????????#### "" ##### #?? | | ?????????????????????##"" "" #???# ?#? | | ?????????????????????##" " ##?## ### | | ?????????????????#?### "" ###### ### | | ??????????????????## "" ##??## # | | ?????????????????#?# "" #?## ## # | | ???????????????????## ##"####?# ### # | | ????????????????????## #?##?????# #?## # | | ?????????????????????###?#???????# ##??### | | ?????????????????????????????#???# ##??### | | ???????????????????????????????#?## ###?## # | | ?????????????????????????????#????## ### # | | ?????????????????????????????#?#???# ## | | ???????????????????????????#??#?#?## | | ????????????????????????????????#?# | | ??????????????????????????????????# | | ???????????????????????????##?????# | +----------------------------------------------------+ Best States ------------- Heat Dissipation 25 Energy Generation 15 Energy Capacity 250 Matter Stores 300 Matter Capacity 300 Sight Range 16 Terrain Scan Range 16 Terrain Scan Density 10 Resistance: KI 20 Resistance: TH 20 Resistance: EX 20 Resistance: EM 20 Resistance: I 20 Resistance: S 20 Resistance: P 20 Evasion (%) 42 Offensive Hacking 10 Item Schematics ----------------- None Robot Schematics ------------------ None Fabricated ------------ Nothing Repaired ---------- Nothing Alien Tech Used ----------------- None Achievements -------------- Curiosity Killed The Cat Challenges ------------ None Game ------ Seed RemoteSalvagingSteel Manual? 0 Play Time 00:21:05 Cumulative 13.5 hours Start 2025.07.02 @ 04:23:16 End 2025.07.02 @ 04:44:46 Sessions 1 Manual Loads 0 Difficulty Adventurer Special Mode None Game No. 12 Rogue 0 Adventurer 12 Explorer 0 Win Type - Total 0 Types 0/0/0/0/0/0/0/0/0/0 Lore% 6 Gallery% 19 Achievement% 18 Wizard Run 0 Options --------- Layout 1 ASCII 0 Keyboard 0 Movement Mouse Keybinds 0 Fullscreen 2 Font 16/SmallcapsGlow Map View 50x35 Zoom Use 0% Tactical HUD 0 Map Filters NONE Filters NONE Steam 0 RUN: 9123564e-a277-4d16-b719-16728ea3875c